[Event "*** Qualifier 4: Titled Tuesday 3|2 Blitz"]
[Site "Chess.com"]
[Date "2017.04.25"]
[Round "1"]
[White "theprosecution1"]
[Black "GM_Huschenbeth"]
[Result "1-0"]
[WhiteElo "2603"]
[BlackElo "2275"]
[TimeControl "180+2"]
[EndTime "13:07:04 PDT"]
[Termination "theprosecution1 won by resignation"]

1. e4 {[%clk 0:02:58.5]} 1... c5 {[%clk 0:03:00.3]} 2. Nf3 {[%clk 0:02:59.3]}
2... d6 {[%clk 0:03:01.9]} 3. d4 {[%clk 0:03:00.4]} 3... cxd4 {[%clk 0:03:03.8]}
4. Nxd4 {[%clk 0:03:02.3]} 4... Nf6 {[%clk 0:03:05.7]} 5. Nc3 {[%clk 0:03:03.4]}
5... a6 {[%clk 0:03:07.3]} 6. Be2 {[%clk 0:03:03.7]} 6... Nbd7 {[%clk
0:03:07.1]} 7. Be3 {[%clk 0:03:03.2]} 7... e6 {[%clk 0:03:07.5]} 8. g4 {[%clk
0:03:00.9]} 8... h6 {[%clk 0:03:06.9]} 9. f4 {[%clk 0:03:00.9]} 9... g5 {[%clk
0:03:08.2]} 10. f5 {[%clk 0:02:58.7]} 10... Ne5 {[%clk 0:03:08.8]} 11. h3 {[%clk
0:02:54.7]} 11... Bd7 {[%clk 0:03:05.1]} 12. Qd2 {[%clk 0:02:54.4]} 12... Rc8
{[%clk 0:03:03.1]} 13. O-O-O {[%clk 0:02:54.3]} 13... Qa5 {[%clk 0:02:59.8]} 14.
fxe6 {[%clk 0:02:48.9]} 14... fxe6 {[%clk 0:03:00.6]} 15. Rhf1 {[%clk
0:02:47.9]} 15... Be7 {[%clk 0:02:42.3]} 16. Nb3 {[%clk 0:02:39.4]} 16... Qc7
{[%clk 0:02:43.8]} 17. Kb1 {[%clk 0:02:33.8]} 17... b5 {[%clk 0:02:44]} 18. a3
{[%clk 0:02:30.7]} 18... Qb7 {[%clk 0:02:39.3]} 19. Bd4 {[%clk 0:02:19.8]} 19...
Nxe4 {[%clk 0:02:30.1]} 20. Nxe4 {[%clk 0:02:17.6]} 20... Qxe4 {[%clk 0:02:32]}
21. Rde1 {[%clk 0:01:46]} 21... Qg2 {[%clk 0:01:51.6]} 22. Qe3 {[%clk
0:01:30.4]} 22... Rf8 {[%clk 0:01:26.2]} 23. Rxf8+ {[%clk 0:01:20.3]} 23... Bxf8
{[%clk 0:01:28.1]} 24. Bxe5 {[%clk 0:01:21.9]} 24... dxe5 {[%clk 0:01:30]} 25.
Qxe5 {[%clk 0:01:23.8]} 25... Qxh3 {[%clk 0:00:33.9]} 26. Nd4 {[%clk 0:01:24.7]}
26... Rc5 {[%clk 0:00:34.9]} 27. Qf6 {[%clk 0:01:19.3]} 27... Qe3 {[%clk
0:00:33.8]} 28. Rf1 {[%clk 0:00:57.2]} 28... Be7 {[%clk 0:00:34.9]} 29. Qh8+
{[%clk 0:00:54.4]} 1-0

[Event "*** Qualifier 4: Titled Tuesday 3|2 Blitz"]
[Site "Chess.com"]
[Date "2017.04.25"]
[Round "1"]
[White "aRk_iN"]
[Black "Bugcrusher"]
[Result "0-1"]
[WhiteElo "2101"]
[BlackElo "2462"]
[TimeControl "180+2"]
[EndTime "13:07:10 PDT"]
[Termination "Bugcrusher won by resignation"]

1. e4 {[%clk 0:02:58.5]} 1... e6 {[%clk 0:02:59.1]} 2. d4 {[%clk 0:02:59]} 2...
d5 {[%clk 0:02:59.9]} 3. Nc3 {[%clk 0:03:00]} 3... Bb4 {[%clk 0:02:56.7]} 4. e5
{[%clk 0:03:00.6]} 4... c5 {[%clk 0:02:55.5]} 5. a3 {[%clk 0:03:01.1]} 5...
Bxc3+ {[%clk 0:02:56.8]} 6. bxc3 {[%clk 0:03:02]} 6... Qa5 {[%clk 0:02:57.8]} 7.
Bd2 {[%clk 0:02:58.6]} 7... Qa4 {[%clk 0:02:58.7]} 8. Qb1 {[%clk 0:02:57.6]}
8... c4 {[%clk 0:02:59.3]} 9. h4 {[%clk 0:02:58]} 9... Nc6 {[%clk 0:02:59.5]}
10. h5 {[%clk 0:02:58.7]} 10... h6 {[%clk 0:02:59.5]} 11. g3 {[%clk 0:02:59]}
11... Nge7 {[%clk 0:03:00.3]} 12. Bh3 {[%clk 0:02:56.2]} 12... Bd7 {[%clk
0:03:01.1]} 13. Ne2 {[%clk 0:02:56.1]} 13... O-O-O {[%clk 0:03:00.9]} 14. Nf4
{[%clk 0:02:56.3]} 14... Kb8 {[%clk 0:02:51.7]} 15. O-O {[%clk 0:02:53.8]} 15...
Ka8 {[%clk 0:02:52.1]} 16. Kh2 {[%clk 0:02:53.1]} 16... Rdf8 {[%clk 0:02:49.8]}
17. Qd1 {[%clk 0:02:29.4]} 17... Nd8 {[%clk 0:02:14.6]} 18. Ng2 {[%clk
0:02:17.4]} 18... f5 {[%clk 0:02:12.2]} 19. exf6 {[%clk 0:01:46.4]} 19... gxf6
{[%clk 0:02:12.4]} 20. Re1 {[%clk 0:01:44.6]} 20... e5 {[%clk 0:01:38.5]} 21.
Nh4 {[%clk 0:00:56.3]} 21... e4 {[%clk 0:01:32.5]} 22. Bf4 {[%clk 0:00:20.7]}
22... Bxh3 {[%clk 0:01:08.7]} 23. Kxh3 {[%clk 0:00:22.6]} 23... Qd7+ {[%clk
0:01:09.4]} 24. Qg4 {[%clk 0:00:22.7]} 24... Ne6 {[%clk 0:01:10.3]} 25. Rab1
{[%clk 0:00:17.3]} 25... Rhg8 {[%clk 0:01:02.8]} 26. Ng6 {[%clk 0:00:10.3]}
26... Nxg6 {[%clk 0:01:01.9]} 27. hxg6 {[%clk 0:00:12.2]} 27... h5 {[%clk
0:01:01.4]} 28. Qf5 {[%clk 0:00:12.6]} 28... Nxf4+ {[%clk 0:01:02.2]} 0-1

[Event "*** Qualifier 4: Titled Tuesday 3|2 Blitz"]
[Site "Chess.com"]
[Date "2017.04.25"]
[Round "1"]
[White "pKiLz5Rn9b"]
[Black "Wolverine_master"]
[Result "1-0"]
[WhiteElo "2436"]
[BlackElo "1988"]
[TimeControl "180+2"]
[EndTime "13:07:13 PDT"]
[Termination "pKiLz5Rn9b won on time"]

1. d4 {[%clk 0:03:02]} 1... Nf6 {[%clk 0:03:00.4]} 2. Nf3 {[%clk 0:03:00.9]}
2... c5 {[%clk 0:03:00.2]} 3. d5 {[%clk 0:03:00.3]} 3... d6 {[%clk 0:03:00.6]}
4. Nc3 {[%clk 0:02:59.9]} 4... g6 {[%clk 0:02:59.3]} 5. e4 {[%clk 0:02:59.7]}
5... Bg4 {[%clk 0:03:00.1]} 6. Bb5+ {[%clk 0:02:55.3]} 6... Nbd7 {[%clk
0:03:00]} 7. O-O {[%clk 0:02:52.9]} 7... Bg7 {[%clk 0:03:00.6]} 8. h3 {[%clk
0:02:52.4]} 8... Bxf3 {[%clk 0:03:01.3]} 9. Qxf3 {[%clk 0:02:52.9]} 9... O-O
{[%clk 0:03:02.3]} 10. a4 {[%clk 0:02:46.5]} 10... a6 {[%clk 0:03:00.1]} 11. Bd3
{[%clk 0:02:45.3]} 11... Ne5 {[%clk 0:02:59.9]} 12. Qe2 {[%clk 0:02:45]} 12...
Nxd3 {[%clk 0:03:00.5]} 13. cxd3 {[%clk 0:02:45.5]} 13... Rb8 {[%clk 0:02:59.5]}
14. Bf4 {[%clk 0:02:39.4]} 14... Nd7 {[%clk 0:02:59.1]} 15. Rfd1 {[%clk
0:02:25.9]} 15... b5 {[%clk 0:02:59.2]} 16. axb5 {[%clk 0:02:23.4]} 16... axb5
{[%clk 0:03:00.2]} 17. Be3 {[%clk 0:02:25]} 17... b4 {[%clk 0:03:01]} 18. Nb1
{[%clk 0:02:25.5]} 18... Qb6 {[%clk 0:02:58]} 19. Nd2 {[%clk 0:02:25.2]} 19...
Ra8 {[%clk 0:02:49.7]} 20. Nc4 {[%clk 0:02:25.7]} 20... Qb5 {[%clk 0:02:50.1]}
21. f4 {[%clk 0:02:21.3]} 21... Nb6 {[%clk 0:02:13.3]} 22. Bf2 {[%clk
0:02:19.9]} 22... Rxa1 {[%clk 0:01:57]} 23. Rxa1 {[%clk 0:02:19.5]} 23... Ra8
{[%clk 0:01:49.1]} 24. Rxa8+ {[%clk 0:02:18.7]} 24... Nxa8 {[%clk 0:01:49.9]}
25. e5 {[%clk 0:02:20.3]} 25... dxe5 {[%clk 0:01:48.9]} 26. fxe5 {[%clk
0:02:20.1]} 26... Nb6 {[%clk 0:01:48.4]} 27. Qe4 {[%clk 0:02:17]} 27... Nxc4
{[%clk 0:01:46.6]} 28. dxc4 {[%clk 0:02:18.9]} 28... Qa4 {[%clk 0:01:44.3]} 29.
Kh2 {[%clk 0:01:57.8]} 29... Qa2 {[%clk 0:01:33.5]} 30. d6 {[%clk 0:01:53]}
30... Qa7 {[%clk 0:00:47.5]} 31. Qd5 {[%clk 0:01:44]} 31... exd6 {[%clk
0:00:39.5]} 32. exd6 {[%clk 0:01:44.3]} 32... Bxb2 {[%clk 0:00:15.5]} 33. d7
{[%clk 0:01:42]} 33... Qc7+ {[%clk 0:00:15.4]} 34. Bg3 {[%clk 0:01:40.4]} 34...
Qd8 {[%clk 0:00:16.4]} 35. Qc6 {[%clk 0:01:41.9]} 1-0

[Event "*** Qualifier 4: Titled Tuesday 3|2 Blitz"]
[Site "Chess.com"]
[Date "2017.04.25"]
[Round "1"]
[White "biostatistician"]
[Black "MorpheusPro"]
[Result "1-0"]
[WhiteElo "2443"]
[BlackElo "2034"]
[TimeControl "180+2"]
[EndTime "13:07:21 PDT"]
[Termination "biostatistician won by resignation"]

1. d4 {[%clk 0:03:02]} 1... d5 {[%clk 0:02:58.2]} 2. Nf3 {[%clk 0:03:03.9]} 2...
e6 {[%clk 0:02:58.1]} 3. c4 {[%clk 0:03:05.8]} 3... Nf6 {[%clk 0:02:57.5]} 4.
Bg5 {[%clk 0:03:07.3]} 4... Be7 {[%clk 0:02:58.1]} 5. e3 {[%clk 0:03:08.9]} 5...
O-O {[%clk 0:02:58.6]} 6. Nc3 {[%clk 0:03:10.5]} 6... c6 {[%clk 0:02:56.7]} 7.
Bd3 {[%clk 0:03:11.2]} 7... a6 {[%clk 0:02:56.6]} 8. O-O {[%clk 0:03:10.2]} 8...
h6 {[%clk 0:02:56.3]} 9. Bh4 {[%clk 0:03:03.9]} 9... b5 {[%clk 0:02:55.1]} 10.
b3 {[%clk 0:03:03.2]} 10... Nbd7 {[%clk 0:02:47.6]} 11. Rc1 {[%clk 0:03:03.3]}
11... dxc4 {[%clk 0:02:40.5]} 12. bxc4 {[%clk 0:03:03.7]} 12... bxc4 {[%clk
0:02:41.5]} 13. Bxc4 {[%clk 0:03:04]} 13... c5 {[%clk 0:02:42.6]} 14. Qe2 {[%clk
0:02:56.5]} 14... cxd4 {[%clk 0:02:37.3]} 15. Nxd4 {[%clk 0:02:58.4]} 15... Bb7
{[%clk 0:02:38.1]} 16. Rfd1 {[%clk 0:02:59]} 16... Qa5 {[%clk 0:02:26.5]} 17.
Nxe6 {[%clk 0:02:37.3]} 17... Ne5 {[%clk 0:01:01.7]} 18. Nxf8 {[%clk 0:02:15.5]}
18... Rxf8 {[%clk 0:01:01.5]} 19. Bxf6 {[%clk 0:02:06.3]} 19... Bxf6 {[%clk
0:01:01.3]} 20. Nd5 {[%clk 0:02:07.3]} 20... Bd8 {[%clk 0:00:52.4]} 21. Bb3
{[%clk 0:01:56]} 21... Ng6 {[%clk 0:00:38.7]} 22. Qh5 {[%clk 0:01:51.4]} 22...
Qb5 {[%clk 0:00:31.5]} 23. Qxg6 {[%clk 0:01:16.5]} 23... Bxd5 {[%clk 0:00:19]}
24. Rxd5 {[%clk 0:00:58.6]} 24... Qxb3 {[%clk 0:00:06.1]} 25. axb3 {[%clk
0:00:57.5]} 25... fxg6 {[%clk 0:00:07]} 26. Rc8 {[%clk 0:00:58.7]} 26... Be7
{[%clk 0:00:07.3]} 27. Rxf8+ {[%clk 0:00:59.6]} 27... Kxf8 {[%clk 0:00:08.2]}
28. Ra5 {[%clk 0:01:01.5]} 1-0

[Event "*** Qualifier 4: Titled Tuesday 3|2 Blitz"]
[Site "Chess.com"]
[Date "2017.04.25"]
[Round "1"]
[White "Ibtihal24"]
[Black "underdogchss"]
[Result "0-1"]
[WhiteElo "1378"]
[BlackElo "2388"]
[TimeControl "180+2"]
[EndTime "13:07:35 PDT"]
[Termination "underdogchss won by checkmate"]

1. d4 {[%clk 0:02:43.8]} 1... Nf6 {[%clk 0:03:00]} 2. Bf4 {[%clk 0:02:43.6]}
2... d6 {[%clk 0:02:51.4]} 3. Nd2 {[%clk 0:02:39.8]} 3... Nbd7 {[%clk
0:02:51.4]} 4. e3 {[%clk 0:02:36.5]} 4... e5 {[%clk 0:02:48.3]} 5. dxe5 {[%clk
0:02:36.5]} 5... dxe5 {[%clk 0:02:48.6]} 6. Bg3 {[%clk 0:02:36]} 6... g6 {[%clk
0:02:35.8]} 7. Be2 {[%clk 0:02:31.3]} 7... Bg7 {[%clk 0:02:35.1]} 8. h3 {[%clk
0:02:30]} 8... O-O {[%clk 0:02:35.3]} 9. Ngf3 {[%clk 0:02:27.8]} 9... Qe7 {[%clk
0:02:33.9]} 10. Nc4 {[%clk 0:02:24.2]} 10... Ne4 {[%clk 0:02:11.2]} 11. Bh4
{[%clk 0:02:18.5]} 11... g5 {[%clk 0:02:09.2]} 12. Bg3 {[%clk 0:01:57.9]} 12...
Nxg3 {[%clk 0:02:05.7]} 13. fxg3 {[%clk 0:01:52.8]} 13... e4 {[%clk 0:01:43.1]}
14. Nd4 {[%clk 0:01:49.7]} 14... Ne5 {[%clk 0:01:40.2]} 15. O-O {[%clk
0:01:45.3]} 15... Rd8 {[%clk 0:01:23.6]} 16. c3 {[%clk 0:01:31.3]} 16... c5
{[%clk 0:01:21.9]} 17. Nf5 {[%clk 0:01:28.9]} 17... Bxf5 {[%clk 0:01:21.3]} 18.
Qc2 {[%clk 0:01:22.1]} 18... Bg6 {[%clk 0:01:08.7]} 19. Nxe5 {[%clk 0:01:05.3]}
19... Bxe5 {[%clk 0:01:08.2]} 20. g4 {[%clk 0:01:04]} 20... Bc7 {[%clk
0:01:08.7]} 21. Rfd1 {[%clk 0:00:57.6]} 21... Qe5 {[%clk 0:01:09]} 22. Rxd8+
{[%clk 0:00:42.7]} 22... Rxd8 {[%clk 0:01:08.5]} 23. Kf2 {[%clk 0:00:26.1]}
23... Qg3+ {[%clk 0:01:08.2]} 24. Kf1 {[%clk 0:00:25.6]} 24... Rd6 {[%clk
0:01:06.1]} 25. Rd1 {[%clk 0:00:18.9]} 25... Rf6+ {[%clk 0:01:04.2]} 26. Bf3
{[%clk 0:00:17.8]} 26... exf3 {[%clk 0:01:04]} 27. gxf3 {[%clk 0:00:18.3]} 27...
Rxf3+ {[%clk 0:00:56.8]} 28. Ke2 {[%clk 0:00:11.8]} 28... Qf2# {[%clk
0:00:57.4]} 0-1

[Event "*** Qualifier 4: Titled Tuesday 3|2 Blitz"]
[Site "Chess.com"]
[Date "2017.04.25"]
[Round "1"]
[White "poummba"]
[Black "Indianlad"]
[Result "0-1"]
[WhiteElo "2363"]
[BlackElo "2699"]
[TimeControl "180+2"]
[EndTime "13:07:39 PDT"]
[Termination "Indianlad won by resignation"]

1. e4 {[%clk 0:03:02]} 1... c5 {[%clk 0:02:57.6]} 2. Nf3 {[%clk 0:03:02.5]} 2...
d6 {[%clk 0:02:59.2]} 3. d4 {[%clk 0:03:03.7]} 3... cxd4 {[%clk 0:03:01.1]} 4.
Nxd4 {[%clk 0:03:05.6]} 4... Nf6 {[%clk 0:03:02.6]} 5. Nc3 {[%clk 0:03:07.3]}
5... Bd7 {[%clk 0:03:04.3]} 6. g3 {[%clk 0:03:06.4]} 6... Nc6 {[%clk 0:03:02.1]}
7. Bg2 {[%clk 0:03:06.4]} 7... g6 {[%clk 0:03:03.6]} 8. O-O {[%clk 0:03:03.9]}
8... Bg7 {[%clk 0:03:05]} 9. Nxc6 {[%clk 0:03:02.8]} 9... bxc6 {[%clk 0:03:03]}
10. Re1 {[%clk 0:02:59.3]} 10... O-O {[%clk 0:03:02.9]} 11. e5 {[%clk
0:03:00.7]} 11... dxe5 {[%clk 0:03:03.7]} 12. Rxe5 {[%clk 0:03:01.8]} 12... Rb8
{[%clk 0:02:44.3]} 13. Re1 {[%clk 0:02:38]} 13... c5 {[%clk 0:02:33.2]} 14. Rb1
{[%clk 0:02:07.3]} 14... Bf5 {[%clk 0:02:30.3]} 15. Qxd8 {[%clk 0:01:46.7]}
15... Rbxd8 {[%clk 0:02:26.7]} 16. Be3 {[%clk 0:01:32.7]} 16... Rc8 {[%clk
0:02:06.4]} 17. Nb5 {[%clk 0:01:17]} 17... a6 {[%clk 0:02:01.5]} 18. Na7 {[%clk
0:01:16.9]} 18... Rc7 {[%clk 0:02:02.9]} 19. Nc6 {[%clk 0:01:16.9]} 19... Rfc8
{[%clk 0:02:03.5]} 20. Bxc5 {[%clk 0:00:42.9]} 20... Rxc6 {[%clk 0:02:04]} 21.
Bxc6 {[%clk 0:00:44.8]} 21... Rxc6 {[%clk 0:02:05.9]} 22. Bxe7 {[%clk
0:00:45.4]} 22... Rxc2 {[%clk 0:02:01.2]} 23. Ba3 {[%clk 0:00:20.7]} 23... Bf8
{[%clk 0:01:49.9]} 24. Bxf8 {[%clk 0:00:10]} 24... Kxf8 {[%clk 0:01:51.8]} 25.
Rec1 {[%clk 0:00:11.5]} 25... Rd2 {[%clk 0:01:52.2]} 26. Rd1 {[%clk 0:00:12.8]}
26... Re2 {[%clk 0:01:46.1]} 27. Re1 {[%clk 0:00:13.8]} 27... Bxb1 {[%clk
0:01:47.5]} 28. Rxe2 {[%clk 0:00:14.7]} 28... Bxa2 {[%clk 0:01:49.1]} 29. Re5
{[%clk 0:00:09.9]} 29... Bc4 {[%clk 0:01:48.9]} 30. f3 {[%clk 0:00:10.4]} 30...
Nd7 {[%clk 0:01:48.9]} 31. Ra5 {[%clk 0:00:09.2]} 31... Bb5 {[%clk 0:01:49.9]}
32. Kf2 {[%clk 0:00:09.4]} 32... Ne5 {[%clk 0:01:51.4]} 33. b3 {[%clk
0:00:07.5]} 33... Ke7 {[%clk 0:01:50.5]} 34. Ke3 {[%clk 0:00:08.7]} 34... Kd6
{[%clk 0:01:51.9]} 35. f4 {[%clk 0:00:08.7]} 35... Ng4+ {[%clk 0:01:51.6]} 36.
Kd4 {[%clk 0:00:09.7]} 36... Nxh2 {[%clk 0:01:52.5]} 37. Ra1 {[%clk 0:00:10.2]}
37... Ng4 {[%clk 0:01:52.6]} 38. Rc1 {[%clk 0:00:09.7]} 38... h5 {[%clk
0:01:52.4]} 39. Rc8 {[%clk 0:00:10.5]} 39... Nh6 {[%clk 0:01:46]} 40. Rd8+
{[%clk 0:00:09.8]} 40... Ke7 {[%clk 0:01:46.7]} 0-1

[Event "*** Qualifier 4: Titled Tuesday 3|2 Blitz"]
[Site "Chess.com"]
[Date "2017.04.25"]
[Round "1"]
[White "rithwik2002"]
[Black "LawrenceTrent"]
[Result "0-1"]
[WhiteElo "1799"]
[BlackElo "2399"]
[TimeControl "180+2"]
[EndTime "13:07:42 PDT"]
[Termination "LawrenceTrent won by resignation"]

1. d4 {[%clk 0:03:00]} 1... Nf6 {[%clk 0:03:00.7]} 2. Bf4 {[%clk 0:03:01]} 2...
e6 {[%clk 0:03:00.2]} 3. e3 {[%clk 0:03:01.4]} 3... c5 {[%clk 0:03:01.3]} 4. c3
{[%clk 0:03:00.2]} 4... Nc6 {[%clk 0:03:02.7]} 5. Nf3 {[%clk 0:02:55.3]} 5... d5
{[%clk 0:03:03.7]} 6. Nbd2 {[%clk 0:02:56.4]} 6... cxd4 {[%clk 0:03:04.5]} 7.
exd4 {[%clk 0:02:57.2]} 7... Nh5 {[%clk 0:03:05.7]} 8. Be3 {[%clk 0:02:56.1]}
8... Bd6 {[%clk 0:03:06.4]} 9. Ne5 {[%clk 0:02:57.2]} 9... g6 {[%clk 0:03:06]}
10. g4 {[%clk 0:02:49.3]} 10... Ng7 {[%clk 0:03:06.1]} 11. h4 {[%clk 0:02:44.1]}
11... h5 {[%clk 0:02:59]} 12. Bg5 {[%clk 0:02:30.5]} 12... Be7 {[%clk
0:02:41.5]} 13. Bxe7 {[%clk 0:02:27.3]} 13... Qxe7 {[%clk 0:02:42.4]} 14. g5
{[%clk 0:02:28.6]} 14... Nxe5 {[%clk 0:02:41.2]} 15. dxe5 {[%clk 0:02:29.4]}
15... Bd7 {[%clk 0:02:40.4]} 16. Bd3 {[%clk 0:02:27.7]} 16... Rc8 {[%clk
0:02:35.5]} 17. Qe2 {[%clk 0:02:26.6]} 17... a6 {[%clk 0:02:36]} 18. Nf3 {[%clk
0:02:27.7]} 18... O-O {[%clk 0:02:36.5]} 19. Nd4 {[%clk 0:02:27.6]} 19... Rc7
{[%clk 0:02:18.2]} 20. f4 {[%clk 0:02:17]} 20... Rb8 {[%clk 0:02:18.6]} 21. a4
{[%clk 0:02:12.4]} 21... Rcc8 {[%clk 0:02:10.2]} 22. a5 {[%clk 0:02:11.2]} 22...
Ne8 {[%clk 0:02:10.4]} 23. Kf2 {[%clk 0:02:00]} 23... Nc7 {[%clk 0:02:11.3]} 24.
Rae1 {[%clk 0:01:53.3]} 24... b6 {[%clk 0:02:10.3]} 25. axb6 {[%clk 0:01:14.4]}
25... Rxb6 {[%clk 0:02:10.8]} 26. Rhg1 {[%clk 0:01:07.7]} 26... Rcb8 {[%clk
0:02:10.6]} 27. b4 {[%clk 0:01:05.6]} 27... a5 {[%clk 0:02:09.7]} 28. Nc2 {[%clk
0:01:05.4]} 28... Ba4 {[%clk 0:02:07.6]} 29. bxa5 {[%clk 0:00:53.1]} 29... Rb2
{[%clk 0:02:03]} 30. Rc1 {[%clk 0:00:53.4]} 30... Qc5+ {[%clk 0:02:03.5]} 31.
Qe3 {[%clk 0:00:48.7]} 31... Qxa5 {[%clk 0:01:55.8]} 32. Kg3 {[%clk 0:00:29.9]}
32... Bxc2 {[%clk 0:01:39.4]} 33. Rxc2 {[%clk 0:00:28]} 33... Rxc2 {[%clk
0:01:39.1]} 34. Bxc2 {[%clk 0:00:29.9]} 34... Nb5 {[%clk 0:01:38.5]} 35. Rb1
{[%clk 0:00:27.1]} 35... Rc8 {[%clk 0:01:39.5]} 36. Bd3 {[%clk 0:00:25]} 36...
Rxc3 {[%clk 0:01:38.1]} 37. Qd2 {[%clk 0:00:26]} 37... Qa3 {[%clk 0:01:36.8]}
38. Rd1 {[%clk 0:00:22.4]} 38... Nd4 {[%clk 0:01:35]} 39. Kf2 {[%clk 0:00:23.5]}
39... Kg7 {[%clk 0:01:28.7]} 40. Bxg6 {[%clk 0:00:22.6]} 40... Rf3+ {[%clk
0:01:28.3]} 41. Kg2 {[%clk 0:00:21.8]} 41... Rg3+ {[%clk 0:01:29.4]} 42. Kf1
{[%clk 0:00:19.9]} 42... Qf3+ {[%clk 0:01:26]} 0-1

[Event "*** Qualifier 4: Titled Tuesday 3|2 Blitz"]
[Site "Chess.com"]
[Date "2017.04.25"]
[Round "1"]
[White "RichardLeyvaP"]
[Black "indfraeng"]
[Result "1-0"]
[WhiteElo "2396"]
[BlackElo "1761"]
[TimeControl "180+2"]
[EndTime "13:07:55 PDT"]
[Termination "RichardLeyvaP won by resignation"]

1. e4 {[%clk 0:03:00.9]} 1... c6 {[%clk 0:02:59.5]} 2. d4 {[%clk 0:03:00.9]}
2... d5 {[%clk 0:02:59.7]} 3. e5 {[%clk 0:03:02.1]} 3... Bf5 {[%clk 0:02:59.8]}
4. Nc3 {[%clk 0:03:01.9]} 4... e6 {[%clk 0:02:52.5]} 5. g4 {[%clk 0:03:02.4]}
5... Bg6 {[%clk 0:02:50.9]} 6. Nge2 {[%clk 0:03:03]} 6... h5 {[%clk 0:02:49.8]}
7. Nf4 {[%clk 0:03:02.8]} 7... hxg4 {[%clk 0:02:08.8]} 8. Nxg6 {[%clk
0:03:01.6]} 8... fxg6 {[%clk 0:02:05.7]} 9. Qxg4 {[%clk 0:03:01.8]} 9... Ne7
{[%clk 0:02:04.8]} 10. Qxe6 {[%clk 0:02:59.2]} 10... Qd7 {[%clk 0:02:06]} 11.
Qxd7+ {[%clk 0:02:59.7]} 11... Nxd7 {[%clk 0:02:05.5]} 12. Bg5 {[%clk
0:02:52.9]} 12... Nf5 {[%clk 0:02:05.1]} 13. O-O-O {[%clk 0:02:53.4]} 13... Bb4
{[%clk 0:02:03.7]} 14. Ne2 {[%clk 0:02:46.1]} 14... O-O {[%clk 0:02:02.3]} 15.
h4 {[%clk 0:02:42.5]} 15... Rac8 {[%clk 0:01:31.2]} 16. Bh3 {[%clk 0:02:33.4]}
16... c5 {[%clk 0:01:29]} 17. f4 {[%clk 0:02:22]} 17... cxd4 {[%clk 0:01:23.2]}
18. Nxd4 {[%clk 0:02:19.4]} 18... Nc5 {[%clk 0:01:10.5]} 19. Nxf5 {[%clk
0:02:09.2]} 19... gxf5 {[%clk 0:01:10]} 20. Rxd5 {[%clk 0:02:09.5]} 20... Ne4
{[%clk 0:01:06.4]} 21. Bg2 {[%clk 0:02:01.8]} 21... Nxg5 {[%clk 0:01:01.4]} 22.
hxg5 {[%clk 0:01:56.8]} 22... b6 {[%clk 0:00:56.7]} 23. Rb5 {[%clk 0:01:54.1]}
23... Bc5 {[%clk 0:00:52.9]} 24. Bd5+ {[%clk 0:01:53.7]} 24... Rf7 {[%clk
0:00:49.9]} 25. g6 {[%clk 0:01:54.9]} 25... Kf8 {[%clk 0:00:51.8]} 26. gxf7
{[%clk 0:01:52.5]} 26... Ke7 {[%clk 0:00:33]} 27. Rxc5 {[%clk 0:01:41.9]} 27...
bxc5 {[%clk 0:00:31.5]} 28. c4 {[%clk 0:01:42.2]} 28... Rb8 {[%clk 0:00:27.8]}
29. b3 {[%clk 0:01:40.5]} 29... a5 {[%clk 0:00:27.1]} 30. Kc2 {[%clk 0:01:41.1]}
30... Rf8 {[%clk 0:00:24.3]} 31. Rg1 {[%clk 0:01:39.7]} 31... Rh8 {[%clk
0:00:21]} 32. Rxg7 {[%clk 0:01:32.8]} 32... Rf8 {[%clk 0:00:22.9]} 33. Rg8
{[%clk 0:01:31.8]} 33... a4 {[%clk 0:00:14.7]} 34. bxa4 {[%clk 0:01:30.1]} 34...
Rxf7 {[%clk 0:00:12.2]} 35. Bxf7 {[%clk 0:01:29.9]} 35... Kxf7 {[%clk
0:00:14.1]} 36. Rg5 {[%clk 0:01:26.3]} 36... Ke6 {[%clk 0:00:11.8]} 37. a5
{[%clk 0:01:27.7]} 37... Kd7 {[%clk 0:00:12.5]} 38. Rg6 {[%clk 0:01:28.2]} 38...
Kc7 {[%clk 0:00:13]} 39. Rd6 {[%clk 0:01:27.8]} 1-0

[Event "*** Qualifier 4: Titled Tuesday 3|2 Blitz"]
[Site "Chess.com"]
[Date "2017.04.25"]
[Round "1"]
[White "BogdanDeac"]
[Black "stepanosinovsky"]
[Result "1-0"]
[WhiteElo "2559"]
[BlackElo "2265"]
[TimeControl "180+2"]
[EndTime "13:07:59 PDT"]
[Termination "BogdanDeac won by resignation"]

1. d4 {[%clk 0:03:02]} 1... Nf6 {[%clk 0:02:59.3]} 2. Bg5 {[%clk 0:03:02.4]}
2... c5 {[%clk 0:02:58]} 3. d5 {[%clk 0:02:58.2]} 3... Ne4 {[%clk 0:02:51.6]} 4.
Bf4 {[%clk 0:02:57.9]} 4... Qb6 {[%clk 0:02:20.6]} 5. Qc1 {[%clk 0:02:54.6]}
5... c4 {[%clk 0:01:34.2]} 6. e3 {[%clk 0:02:52.5]} 6... Qa5+ {[%clk 0:01:34.6]}
7. Nd2 {[%clk 0:02:46.7]} 7... c3 {[%clk 0:01:31]} 8. bxc3 {[%clk 0:02:41.1]}
8... Nxc3 {[%clk 0:01:29.5]} 9. Bc4 {[%clk 0:02:34.4]} 9... b5 {[%clk
0:01:18.2]} 10. Bb3 {[%clk 0:02:34.5]} 10... d6 {[%clk 0:00:55.3]} 11. Ne2
{[%clk 0:02:20.9]} 11... g5 {[%clk 0:00:28]} 12. Bg3 {[%clk 0:02:00]} 12... Bg7
{[%clk 0:00:25.1]} 13. f3 {[%clk 0:01:58.8]} 13... Na6 {[%clk 0:00:17.6]} 14.
Kf2 {[%clk 0:01:52.4]} 14... Nc5 {[%clk 0:00:18.7]} 15. Re1 {[%clk 0:01:46.6]}
15... Bd7 {[%clk 0:00:18.7]} 16. Kf1 {[%clk 0:01:42.2]} 16... h5 {[%clk
0:00:19.4]} 17. Bf2 {[%clk 0:01:42.1]} 17... Rc8 {[%clk 0:00:18.6]} 18. e4
{[%clk 0:01:41.7]} 18... Nd3 {[%clk 0:00:16.2]} 19. cxd3 {[%clk 0:01:37]} 19...
Nxe2 {[%clk 0:00:17.2]} 20. Qd1 {[%clk 0:01:34.9]} 20... Nc3 {[%clk 0:00:16]}
21. Qc2 {[%clk 0:01:24.8]} 21... Nxd5 {[%clk 0:00:15.1]} 22. Qb1 {[%clk
0:01:16.4]} 22... Nc3 {[%clk 0:00:16.2]} 23. Qb2 {[%clk 0:01:15.5]} 23... O-O
{[%clk 0:00:14.4]} 24. d4 {[%clk 0:01:15.4]} 24... b4 {[%clk 0:00:11.8]} 25. Kg1
{[%clk 0:01:14.3]} 25... Bb5 {[%clk 0:00:12.3]} 26. a3 {[%clk 0:01:10.9]} 26...
Ne2+ {[%clk 0:00:09.3]} 27. Rxe2 {[%clk 0:01:11]} 27... Bxe2 {[%clk 0:00:09.8]}
28. axb4 {[%clk 0:01:12.3]} 28... Qxb4 {[%clk 0:00:10.4]} 29. Bxf7+ {[%clk
0:01:12.2]} 29... Rxf7 {[%clk 0:00:09.9]} 30. Qxb4 {[%clk 0:01:13.2]} 30... Rcf8
{[%clk 0:00:09.5]} 31. Re1 {[%clk 0:01:11.7]} 31... Ba6 {[%clk 0:00:09.9]} 32.
Qa5 {[%clk 0:01:12.7]} 32... Bc8 {[%clk 0:00:10.7]} 33. Qxg5 {[%clk 0:01:13.2]}
33... Rf6 {[%clk 0:00:04.6]} 34. Qxh5 {[%clk 0:01:12.7]} 34... d5 {[%clk
0:00:04.4]} 35. Qxd5+ {[%clk 0:01:13]} 35... Be6 {[%clk 0:00:04.3]} 36. Qa5
{[%clk 0:01:13.9]} 36... Rg6 {[%clk 0:00:04.9]} 37. Qxa7 {[%clk 0:01:13.7]}
37... Bh3 {[%clk 0:00:05.4]} 38. g3 {[%clk 0:01:14.9]} 38... Bh6 {[%clk
0:00:06.9]} 39. Be3 {[%clk 0:01:15.5]} 39... Bg7 {[%clk 0:00:07.1]} 40. Qxe7
{[%clk 0:01:14.6]} 40... Rf7 {[%clk 0:00:07.8]} 41. Qe8+ {[%clk 0:01:15]} 41...
Rf8 {[%clk 0:00:09]} 42. Qxg6 {[%clk 0:01:15.4]} 1-0